[Event "10th Tal Memorial 2016 - Blitz"]
[Site "Moscow"]
[Date "2016.09.25"]
[Round "2"]
[White "Nepomniachtchi, Ian"]
[Black "Anand, Viswanathan"]
[Result "1/2-1/2"]
[ECO "C65"]
[WhiteElo "2740"]
[BlackElo "2776"]
[Annotator "ChessBase"]
[PlyCount "126"]
[EventDate "2016.??.??"]
[EventType "tourn"]
[EventCountry "RUS"]
[SourceTitle "playchess.com"]
[Source "ChessBase"]
[TimeControl "180+2"]

1. e4 {[%emt 0:00:00]} e5 {[%emt 0:00:00]} 2. Nf3 {[%emt 0:00:01]} Nc6 {
[%emt 0:00:00]} 3. Bb5 {[%emt 0:00:02]} Nf6 {[%emt 0:00:00]} 4. d3 {[%emt 0:00:
02]} Bc5 {[%emt 0:00:01]} 5. O-O {[%emt 0:00:02]} Nd4 {[%emt 0:00:01]} 6. Nxd4
{[%emt 0:00:01]} Bxd4 {[%emt 0:00:01]} 7. Nd2 {[%emt 0:00:02]} c6 {[%emt 0:00:
06]} 8. Ba4 {[%emt 0:00:00]} d6 {[%emt 0:00:06]} 9. Bb3 {[%emt 0:00:06]} O-O {
[%emt 0:00:10]} 10. c3 {[%emt 0:00:02]} Bb6 {[%emt 0:00:04]} 11. Nc4 {[%emt 0:
00:01]} h6 {[%emt 0:00:04]} 12. Qf3 {[%emt 0:00:15]} Bc7 {[%emt 0:00:07]} 13.
Ne3 {[%emt 0:00:01]} Be6 {[%emt 0:00:03]} 14. g4 {[%emt 0:00:04]} d5 {[%emt 0:
00:17]} 15. Nf5 {[%emt 0:00:01]} a5 {[%emt 0:00:03]} 16. g5 {[%emt 0:00:23]}
hxg5 {[%emt 0:00:05]} 17. Bxg5 {[%emt 0:00:02]} Bxf5 {[%emt 0:00:04]} 18. Qxf5
{[%emt 0:00:05]} a4 {[%emt 0:00:13]} 19. Bc2 {[%emt 0:00:22]} Qd7 {[%emt 0:00:
01]} 20. Qxd7 {[%emt 0:00:53]} Nxd7 {[%emt 0:00:01]} 21. Rae1 {[%emt 0:00:02]}
f5 {[%emt 0:00:16]} 22. f4 {[%emt 0:00:14]} fxe4 {[%emt 0:00:05]} 23. dxe4 {
[%emt 0:00:01]} dxe4 {[%emt 0:00:24]} 24. fxe5 {[%emt 0:00:13]} Nxe5 {[%emt 0:
00:20]} 25. Bxe4 {[%emt 0:00:04]} Ng4 {[%emt 0:00:28]} 26. h3 {[%emt 0:00:06]}
Rxf1+ {[%emt 0:00:25]} 27. Rxf1 {[%emt 0:00:18]} Bb6+ {[%emt 0:00:01]} 28. Kg2
{[%emt 0:00:04]} Ne3+ {[%emt 0:00:01]} 29. Bxe3 {[%emt 0:00:02]} Bxe3 {[%emt 0:
00:01]} 30. Bg6 {[%emt 0:00:01]} Bg5 {[%emt 0:00:10]} 31. Rf7 {[%emt 0:00:05]}
Rb8 {[%emt 0:00:07]} 32. Rf5 {[%emt 0:00:03]} Bf6 {[%emt 0:00:04]} 33. Ra5 {
[%emt 0:00:02]} b5 {[%emt 0:00:13]} 34. a3 {[%emt 0:00:00]} Kf8 {[%emt 0:00:02]
} 35. Ra7 {[%emt 0:00:08]} c5 {[%emt 0:00:01]} 36. Rf7+ {[%emt 0:00:04]} Kg8 {
[%emt 0:00:00]} 37. Rc7 {[%emt 0:00:02]} b4 {[%emt 0:00:01]} 38. Rxc5 {[%emt 0:
00:06]} bxa3 {[%emt 0:00:01]} 39. bxa3 {[%emt 0:00:01]} Kf8 {[%emt 0:00:01]}
40. Rc4 {[%emt 0:00:06]} Ke7 {[%emt 0:00:02]} 41. Rxa4 {[%emt 0:00:02]} Bxc3 {
[%emt 0:00:01]} 42. Rc4 {[%emt 0:00:01]} Rb2+ {[%emt 0:00:02]} 43. Kf3 {
[%emt 0:00:03]} Rb3 {[%emt 0:00:01]} 44. a4 {[%emt 0:00:01]} Kf6 {[%emt 0:00:
02]} 45. Bc2 {[%emt 0:00:02]} Ra3 {[%emt 0:00:01]} 46. Ke4 {[%emt 0:00:04]} Be1
{[%emt 0:00:02]} 47. Bd3 {[%emt 0:00:02]} Kg5 {[%emt 0:00:02]} 48. Be2 {
[%emt 0:00:05]} Kh4 {[%emt 0:00:02]} 49. Bg4 {[%emt 0:00:01]} Rb3 {[%emt 0:00:
02]} 50. Kd5 {[%emt 0:00:02]} Rb4 {[%emt 0:00:01]} 51. Rxb4 {[%emt 0:00:01]}
Bxb4 {[%emt 0:00:01]} 52. Kc6 {[%emt 0:00:01]} Kg5 {[%emt 0:00:02]} 53. Kb6 {
[%emt 0:00:01]} Kh6 {[%emt 0:00:01]} 54. a5 {[%emt 0:00:00]} Bxa5+ {[%emt 0:00:
00]} 55. Kxa5 {[%emt 0:00:01]} g5 {[%emt 0:00:01]} 56. Kb5 {[%emt 0:00:03]} Kg7
{[%emt 0:00:01]} 57. Kc5 {[%emt 0:00:01]} Kh8 {[%emt 0:00:01]} 58. Kd6 {
[%emt 0:00:04]} Kg7 {[%emt 0:00:02]} 59. Ke5 {[%emt 0:00:01]} Kh8 {[%emt 0:00:
00]} 60. Kf6 {[%emt 0:00:01]} Kh7 {[%emt 0:00:01]} 61. Bf5+ {[%emt 0:00:02]}
Kh8 {[%emt 0:00:01]} 62. Be6 {[%emt 0:00:04]} Kh7 {[%emt 0:00:01]} 63. Kf7 {
[%emt 0:00:00]} Kh8 {[%emt 0:00:01]} 1/2-1/2

[Event "10th Tal Memorial 2016 - Blitz"]
[Site "Moscow"]
[Date "2016.09.25"]
[Round "2"]
[White "Svidler, Peter"]
[Black "Giri, Anish"]
[Result "1/2-1/2"]
[ECO "B50"]
[WhiteElo "2745"]
[BlackElo "2755"]
[Annotator "ChessBase"]
[PlyCount "84"]
[EventDate "2016.??.??"]
[EventType "tourn"]
[EventCountry "RUS"]
[SourceTitle "playchess.com"]
[Source "ChessBase"]
[TimeControl "180+2"]

1. Nf3 {[%emt 0:00:00]} c5 {[%emt 0:00:00]} 2. e4 {[%emt 0:00:02]} d6 {[%emt 0:
00:00]} 3. c3 {[%emt 0:00:02]} Nf6 {[%emt 0:00:01]} 4. Be2 {[%emt 0:00:01]} g6
{[%emt 0:00:02]} 5. O-O {[%emt 0:00:02]} Bg7 {[%emt 0:00:01]} 6. Bb5+ {[%emt 0:
00:01]} Nc6 {[%emt 0:00:01]} 7. Re1 {[%emt 0:00:06]} O-O {[%emt 0:00:07]} 8. d4
{[%emt 0:00:02]} cxd4 {[%emt 0:00:11]} 9. cxd4 {[%emt 0:00:01]} Bg4 {[%emt 0:
00:01]} 10. Bxc6 {[%emt 0:00:01]} bxc6 {[%emt 0:00:01]} 11. Nbd2 {[%emt 0:00:
24]} Nd7 {[%emt 0:00:06]} 12. h3 {[%emt 0:00:02]} Bxf3 {[%emt 0:00:01]} 13.
Nxf3 c5 14. Be3 {[%emt 0:00:04]} Rb8 {[%emt 0:00:03]} 15. b3 {[%emt 0:00:07]}
Qa5 {[%emt 0:00:02]} 16. Re2 {[%emt 0:00:14]} Rfc8 {[%emt 0:00:03]} 17. Rc1 {
[%emt 0:00:02]} cxd4 {[%emt 0:00:13]} 18. Nxd4 {[%emt 0:00:06]} Qa6 {[%emt 0:
00:17]} 19. Rec2 {[%emt 0:00:06]} Ne5 {[%emt 0:00:21]} 20. Qe2 {[%emt 0:00:09]}
Qb7 {[%emt 0:00:05]} 21. f4 {[%emt 0:00:16]} Rxc2 {[%emt 0:00:04]} 22. Rxc2 {
[%emt 0:00:18]} Nd7 {[%emt 0:00:05]} 23. Nc6 {[%emt 0:00:01]} Re8 {[%emt 0:00:
03]} 24. Nxa7 {[%emt 0:00:02]} Qxe4 {[%emt 0:00:05]} 25. Nb5 {[%emt 0:00:05]}
Nf6 {[%emt 0:00:15]} 26. Rc4 {[%emt 0:00:24]} Qb1+ {[%emt 0:00:02]} 27. Rc1 {
[%emt 0:00:02]} Qf5 {[%emt 0:00:09]} 28. Nd4 {[%emt 0:00:11]} Qe4 {[%emt 0:00:
03]} 29. Qf3 {[%emt 0:00:05]} Qd3 {[%emt 0:00:10]} 30. Rd1 {[%emt 0:00:04]} Qa6
{[%emt 0:00:02]} 31. a4 {[%emt 0:00:02]} Rc8 {[%emt 0:00:28]} 32. Qf1 {[%emt 0:
00:09]} Qa8 {[%emt 0:00:03]} 33. Qf3 {[%emt 0:00:20]} Nd5 {[%emt 0:00:20]} 34.
Nb5 {[%emt 0:00:07]} e6 {[%emt 0:00:14]} 35. Bf2 {[%emt 0:00:01]} Qa6 {[%emt 0:
00:04]} 36. Qe4 {[%emt 0:00:04]} h5 {[%emt 0:00:07]} 37. Bd4 {[%emt 0:00:03]}
Bxd4+ {[%emt 0:00:03]} 38. Qxd4 {[%emt 0:00:03]} Rc2 {[%emt 0:00:04]} 39. Rd2 {
[%emt 0:00:01]} Rc1+ {[%emt 0:00:03]} 40. Rd1 {[%emt 0:00:00]} Rc2 {[%emt 0:00:
07]} 41. Rd2 {[%emt 0:00:02]} Rc1+ {[%emt 0:00:00]} 42. Rd1 {[%emt 0:00:05]}
Rc2 {[%emt 0:00:04]} 1/2-1/2

[Event "10th Tal Memorial 2016 - Blitz"]
[Site "Moscow"]
[Date "2016.09.25"]
[Round "2"]
[White "Tomashevsky, Evgeny"]
[Black "Li, Chao b"]
[Result "1-0"]
[ECO "A09"]
[WhiteElo "2731"]
[BlackElo "2746"]
[Annotator "ChessBase"]
[PlyCount "79"]
[EventDate "2016.??.??"]
[EventType "tourn"]
[EventCountry "RUS"]
[SourceTitle "playchess.com"]
[Source "ChessBase"]
[TimeControl "180+2"]

1. Nf3 {[%emt 0:00:00]} d5 {[%emt 0:00:01]} 2. c4 {[%emt 0:00:04]} d4 {[%emt 0:
00:04]} 3. g3 {[%emt 0:00:02]} c5 {[%emt 0:00:03]} 4. e3 {[%emt 0:00:02]} Nc6 {
[%emt 0:00:01]} 5. exd4 {[%emt 0:00:01]} cxd4 {[%emt 0:00:02]} 6. Bg2 {[%emt 0:
00:01]} g6 {[%emt 0:00:06]} 7. O-O {[%emt 0:00:08]} Bg7 {[%emt 0:00:04]} 8. d3
{[%emt 0:00:02]} Nf6 {[%emt 0:00:01]} 9. Re1 {[%emt 0:00:22]} O-O {[%emt 0:00:
02]} 10. a3 {[%emt 0:00:05]} a5 {[%emt 0:00:03]} 11. Nbd2 {[%emt 0:00:04]} Bf5
{[%emt 0:00:11]} 12. Nh4 {[%emt 0:00:05]} Bg4 {[%emt 0:00:10]} 13. Qc2 {
[%emt 0:00:03]} g5 {[%emt 0:00:11]} 14. Nhf3 {[%emt 0:00:05]} h6 {[%emt 0:00:
02]} 15. Rb1 {[%emt 0:00:08]} Rc8 {[%emt 0:00:03]} 16. b4 {[%emt 0:00:09]} axb4
{[%emt 0:00:02]} 17. axb4 {[%emt 0:00:01]} b5 {[%emt 0:00:01]} 18. Qb3 {
[%emt 0:00:01]} bxc4 {[%emt 0:00:06]} 19. Nxc4 {[%emt 0:00:02]} Nd5 {[%emt 0:
00:13]} 20. b5 {[%emt 0:00:08]} Rb8 {[%emt 0:00:03]} 21. Ba3 {[%emt 0:00:44]}
Nc3 {[%emt 0:00:29]} 22. bxc6 {[%emt 0:00:04]} Rxb3 {[%emt 0:00:04]} 23. Rxb3 {
[%emt 0:00:01]} Be6 {[%emt 0:00:02]} 24. Rb7 {[%emt 0:00:10]} Bf6 {[%emt 0:00:
26]} 25. Nfe5 {[%emt 0:00:02]} Bd5 {[%emt 0:00:46]} 26. Rd7 {[%emt 0:00:10]}
Qa8 {[%emt 0:00:11]} 27. Bxd5 {[%emt 0:00:02]} Nxd5 {[%emt 0:00:02]} 28. Rxd5 {
[%emt 0:00:01]} Bxe5 {[%emt 0:00:08]} 29. Rdxe5 {[%emt 0:00:18]} Qxc6 {[%emt 0:
00:01]} 30. Rxe7 {[%emt 0:00:10]} Ra8 {[%emt 0:00:02]} 31. Bb2 {[%emt 0:00:01]}
Qf3 {[%emt 0:00:02]} 32. Ne5 {[%emt 0:00:04]} Qf6 {[%emt 0:00:01]} 33. Rxf7 {
[%emt 0:00:03]} Qb6 {[%emt 0:00:02]} 34. Nc4 {[%emt 0:00:04]} Qb3 {[%emt 0:00:
07]} 35. Ree7 {[%emt 0:00:16]} Qxd3 {[%emt 0:00:04]} 36. Rg7+ {[%emt 0:00:03]}
Kh8 {[%emt 0:00:04]} 37. Ne5 {[%emt 0:00:01]} Qb1+ {[%emt 0:00:05]} 38. Kg2 {
[%emt 0:00:02]} Qe4+ {[%emt 0:00:04]} 39. Kh3 {[%emt 0:00:03]} Qf5+ {[%emt 0:
00:02]} 40. g4 {[%emt 0:00:03]} 1-0

[Event "10th Tal Memorial 2016 - Blitz"]
[Site "Moscow"]
[Date "2016.09.25"]
[Round "3"]
[White "Anand, Viswanathan"]
[Black "Kramnik, Vladimir"]
[Result "1/2-1/2"]
[ECO "C50"]
[WhiteElo "2776"]
[BlackElo "2808"]
[Annotator "ChessBase"]
[PlyCount "61"]
[EventDate "2016.??.??"]
[EventType "tourn"]
[EventCountry "RUS"]
[SourceTitle "playchess.com"]
[Source "ChessBase"]
[TimeControl "180+2"]

1. e4 {[%emt 0:00:00]} e5 {[%emt 0:00:01]} 2. Nf3 {[%emt 0:00:01]} Nc6 {
[%emt 0:00:01]} 3. Bc4 {[%emt 0:00:01]} Bc5 {[%emt 0:00:01]} 4. O-O {[%emt 0:
00:03]} Nf6 {[%emt 0:00:02]} 5. d3 {[%emt 0:00:01]} d6 {[%emt 0:00:01]} 6. c3 {
[%emt 0:00:02]} h6 {[%emt 0:00:02]} 7. a4 {[%emt 0:00:05]} a6 {[%emt 0:00:01]}
8. Na3 {[%emt 0:00:01]} O-O {[%emt 0:00:07]} 9. Nc2 {[%emt 0:00:01]} Re8 {
[%emt 0:00:06]} 10. Be3 {[%emt 0:00:04]} Bxe3 {[%emt 0:00:07]} 11. Nxe3 {
[%emt 0:00:01]} Be6 {[%emt 0:00:01]} 12. Bxe6 {[%emt 0:00:08]} Rxe6 {[%emt 0:
00:02]} 13. b4 {[%emt 0:00:04]} Ne7 {[%emt 0:00:08]} 14. c4 {[%emt 0:00:02]} c6
{[%emt 0:00:18]} 15. Re1 {[%emt 0:00:05]} Ng6 {[%emt 0:00:03]} 16. g3 {[%emt 0:
00:03]} Qd7 {[%emt 0:00:04]} 17. Rb1 {[%emt 0:00:10]} Rd8 {[%emt 0:00:04]} 18.
Nf5 {[%emt 0:00:18]} Ree8 {[%emt 0:00:13]} 19. b5 {[%emt 0:00:07]} axb5 {
[%emt 0:00:02]} 20. axb5 {[%emt 0:00:01]} d5 {[%emt 0:00:04]} 21. bxc6 {
[%emt 0:00:10]} bxc6 {[%emt 0:00:01]} 22. Qc2 {[%emt 0:00:09]} dxe4 {[%emt 0:
00:21]} 23. dxe4 {[%emt 0:00:01]} Qd3 {[%emt 0:00:06]} 24. Qxd3 {[%emt 0:00:01]
} Rxd3 {[%emt 0:00:01]} 25. Kg2 {[%emt 0:00:02]} Rc3 {[%emt 0:00:06]} 26. Rb6 {
[%emt 0:00:05]} Re6 {[%emt 0:00:09]} 27. Rb8+ {[%emt 0:00:08]} Kh7 {[%emt 0:00:
02]} 28. Rb7 {[%emt 0:00:04]} Nh8 {[%emt 0:00:11]} 29. Re7 {[%emt 0:00:56]}
Rxe7 {[%emt 0:00:33]} 30. Nxe7 {[%emt 0:00:02]} Rxc4 {[%emt 0:00:07]} 31. Nxe5
{[%emt 0:00:02]} 1/2-1/2

[Event "10th Tal Memorial 2016 - Blitz"]
[Site "Moscow"]
[Date "2016.09.25"]
[Round "3"]
[White "Aronian, Levon"]
[Black "Tomashevsky, Evgeny"]
[Result "1-0"]
[ECO "C50"]
[WhiteElo "2795"]
[BlackElo "2731"]
[Annotator "ChessBase"]
[PlyCount "131"]
[EventDate "2016.??.??"]
[EventType "tourn"]
[EventCountry "RUS"]
[SourceTitle "playchess.com"]
[Source "ChessBase"]
[TimeControl "180+2"]

1. e4 {[%emt 0:00:00]} e5 {[%emt 0:00:00]} 2. Nf3 {[%emt 0:00:01]} Nc6 {
[%emt 0:00:01]} 3. Bc4 {[%emt 0:00:02]} Bc5 {[%emt 0:00:03]} 4. O-O {[%emt 0:
00:03]} Nf6 {[%emt 0:00:01]} 5. d3 {[%emt 0:00:02]} O-O {[%emt 0:00:03]} 6. a4
{[%emt 0:00:01]} h6 {[%emt 0:00:04]} 7. c3 {[%emt 0:00:09]} a5 {[%emt 0:00:03]}
8. Re1 {[%emt 0:00:03]} d6 {[%emt 0:00:10]} 9. Na3 {[%emt 0:00:02]} Be6 {
[%emt 0:00:42]} 10. Bxe6 {[%emt 0:00:20]} fxe6 {[%emt 0:00:01]} 11. Nc2 {
[%emt 0:00:13]} Qe8 {[%emt 0:00:19]} 12. Be3 {[%emt 0:00:03]} Bxe3 {[%emt 0:00:
09]} 13. Nxe3 {[%emt 0:00:02]} Qg6 {[%emt 0:00:03]} 14. Qb3 {[%emt 0:00:29]}
Nd8 {[%emt 0:00:02]} 15. Nf5 {[%emt 0:00:17]} Qf7 {[%emt 0:00:07]} 16. Ng3 {
[%emt 0:00:02]} b6 {[%emt 0:00:19]} 17. Rad1 {[%emt 0:00:12]} Nc6 {[%emt 0:00:
03]} 18. Qc4 {[%emt 0:00:07]} Qd7 {[%emt 0:00:05]} 19. h3 {[%emt 0:00:21]} Rf7
{[%emt 0:00:03]} 20. Qb5 {[%emt 0:00:24]} Raf8 {[%emt 0:00:05]} 21. Re2 {
[%emt 0:00:03]} Ne7 {[%emt 0:00:07]} 22. Qxd7 {[%emt 0:00:08]} Nxd7 {[%emt 0:
00:01]} 23. d4 {[%emt 0:00:00]} Ng6 {[%emt 0:00:02]} 24. Rc2 {[%emt 0:00:11]}
Rxf3 {[%emt 0:00:39]} 25. gxf3 {[%emt 0:00:01]} Nh4 {[%emt 0:00:02]} 26. Re2 {
[%emt 0:00:10]} Nxf3+ {[%emt 0:00:03]} 27. Kg2 {[%emt 0:00:01]} Nh4+ {[%emt 0:
00:04]} 28. Kf1 {[%emt 0:00:01]} Ng6 {[%emt 0:00:07]} 29. Re3 {[%emt 0:00:01]}
Rf4 {[%emt 0:00:20]} 30. Ne2 {[%emt 0:00:04]} Rf7 {[%emt 0:00:01]} 31. Nc1 {
[%emt 0:00:03]} exd4 {[%emt 0:00:08]} 32. cxd4 {[%emt 0:00:00]} e5 {[%emt 0:00:
01]} 33. Ne2 {[%emt 0:00:19]} exd4 {[%emt 0:00:02]} 34. Nxd4 {[%emt 0:00:01]}
Nc5 {[%emt 0:00:01]} 35. b3 {[%emt 0:00:01]} Ne5 {[%emt 0:00:01]} 36. Kg2 {
[%emt 0:00:07]} Kf8 {[%emt 0:00:02]} 37. f3 {[%emt 0:00:05]} Ke8 {[%emt 0:00:
01]} 38. Ne2 {[%emt 0:00:02]} Kd7 {[%emt 0:00:03]} 39. f4 {[%emt 0:00:01]} Ng6
{[%emt 0:00:01]} 40. Kg3 {[%emt 0:00:01]} Ne7 {[%emt 0:00:07]} 41. Nd4 {
[%emt 0:00:02]} Ng6 {[%emt 0:00:02]} 42. Rf1 {[%emt 0:00:03]} Re7 {[%emt 0:00:
02]} 43. Rfe1 {[%emt 0:00:01]} Rf7 {[%emt 0:00:01]} 44. Rf1 {[%emt 0:00:02]}
Re7 {[%emt 0:00:01]} 45. e5 {[%emt 0:00:04]} dxe5 {[%emt 0:00:01]} 46. fxe5 {
[%emt 0:00:01]} Nxe5 {[%emt 0:00:02]} 47. Nf5 {[%emt 0:00:01]} Re6 {[%emt 0:00:
01]} 48. Nxg7 {[%emt 0:00:03]} Rg6+ {[%emt 0:00:01]} 49. Kh2 {[%emt 0:00:01]}
Rxg7 {[%emt 0:00:04]} 50. Rxe5 {[%emt 0:00:01]} Nxb3 {[%emt 0:00:01]} 51. Rd1+
{[%emt 0:00:02]} Kc6 {[%emt 0:00:04]} 52. Re6+ {[%emt 0:00:02]} Kc5 {[%emt 0:
00:01]} 53. Rxh6 {[%emt 0:00:04]} Kb4 {[%emt 0:00:04]} 54. Rh4+ {[%emt 0:00:01]
} Ka3 {[%emt 0:00:00]} 55. Rg4 {[%emt 0:00:01]} Rh7 {[%emt 0:00:02]} 56. Rd3 {
[%emt 0:00:02]} b5 {[%emt 0:00:06]} 57. axb5 {[%emt 0:00:04]} Rh5 {[%emt 0:00:
01]} 58. Rc4 {[%emt 0:00:04]} Rxb5 {[%emt 0:00:02]} 59. Rxc7 {[%emt 0:00:01]}
a4 {[%emt 0:00:00]} 60. Rc2 {[%emt 0:00:01]} Kb4 {[%emt 0:00:02]} 61. h4 {
[%emt 0:00:02]} a3 {[%emt 0:00:01]} 62. Rg3 {[%emt 0:00:02]} Nd4 {[%emt 0:00:
03]} 63. Rd2 {[%emt 0:00:03]} Rd5 {[%emt 0:00:04]} 64. Kh3 {[%emt 0:00:01]} Rd6
{[%emt 0:00:02]} 65. Rgd3 {[%emt 0:00:02]} Kc4 {[%emt 0:00:03]} 66. Rxa3 {
[%emt 0:00:01]} 1-0

[Event "10th Tal Memorial 2016 - Blitz"]
[Site "Moscow"]
[Date "2016.09.25"]
[Round "3"]
[White "Li, Chao b"]
[Black "Svidler, Peter"]
[Result "1/2-1/2"]
[ECO "A41"]
[WhiteElo "2746"]
[BlackElo "2745"]
[Annotator "ChessBase"]
[PlyCount "78"]
[EventDate "2016.??.??"]
[EventType "tourn"]
[EventCountry "RUS"]
[SourceTitle "playchess.com"]
[Source "ChessBase"]
[TimeControl "180+2"]

1. d4 {[%emt 0:00:00]} d6 {[%emt 0:00:00]} 2. Nf3 {[%emt 0:00:03]} Bg4 {
[%emt 0:00:04]} 3. g3 {[%emt 0:00:02]} Bxf3 {[%emt 0:00:03]} 4. exf3 {[%emt 0:
00:01]} g6 {[%emt 0:00:17]} 5. Bg2 {[%emt 0:00:02]} Bg7 {[%emt 0:00:01]} 6. O-O
{[%emt 0:00:02]} d5 {[%emt 0:00:03]} 7. f4 {[%emt 0:00:07]} e6 {[%emt 0:00:04]}
8. c3 {[%emt 0:00:02]} Ne7 {[%emt 0:00:02]} 9. Nd2 {[%emt 0:00:01]} Nd7 {
[%emt 0:00:02]} 10. Nf3 {[%emt 0:00:01]} c5 {[%emt 0:00:03]} 11. Ne5 {[%emt 0:
00:01]} cxd4 {[%emt 0:00:16]} 12. cxd4 {[%emt 0:00:02]} O-O {[%emt 0:00:02]}
13. Qb3 {[%emt 0:00:03]} Rb8 {[%emt 0:00:16]} 14. Qa4 {[%emt 0:00:10]} Nc6 {
[%emt 0:00:16]} 15. Be3 {[%emt 0:00:13]} Nb6 {[%emt 0:00:03]} 16. Qb5 {[%emt 0:
00:21]} a6 {[%emt 0:00:11]} 17. Qe2 {[%emt 0:00:45]} Qd6 {[%emt 0:00:03]} 18.
Rfc1 {[%emt 0:00:01]} Rfc8 {[%emt 0:00:01]} 19. h4 {[%emt 0:00:07]} Rc7 {
[%emt 0:00:07]} 20. h5 {[%emt 0:00:05]} Rbc8 {[%emt 0:00:01]} 21. hxg6 {
[%emt 0:00:02]} hxg6 {[%emt 0:00:01]} 22. Rd1 {[%emt 0:00:26]} Ne7 {[%emt 0:00:
03]} 23. Rac1 {[%emt 0:00:19]} Nf5 {[%emt 0:00:02]} 24. Rxc7 {[%emt 0:00:07]}
Rxc7 {[%emt 0:00:01]} 25. Bh3 {[%emt 0:00:02]} Nxe3 {[%emt 0:00:22]} 26. fxe3 {
[%emt 0:00:05]} Bxe5 {[%emt 0:00:02]} 27. fxe5 {[%emt 0:00:02]} Qc6 {[%emt 0:
00:00]} 28. b3 {[%emt 0:00:12]} Qc2 {[%emt 0:00:02]} 29. Rd2 {[%emt 0:00:01]}
Qb1+ {[%emt 0:00:04]} 30. Bf1 {[%emt 0:00:00]} Nc8 {[%emt 0:00:02]} 31. Qf2 {
[%emt 0:00:07]} Ne7 {[%emt 0:00:07]} 32. Qf6 {[%emt 0:00:01]} Qf5 {[%emt 0:00:
12]} 33. Qh4 {[%emt 0:00:01]} Qe4 {[%emt 0:00:09]} 34. Qg5 {[%emt 0:00:07]} Rc1
{[%emt 0:00:32]} 35. Qxe7 {[%emt 0:00:14]} Qxe3+ {[%emt 0:00:01]} 36. Rf2 {
[%emt 0:00:02]} Qxg3+ {[%emt 0:00:01]} 37. Rg2 {[%emt 0:00:02]} Qe3+ {[%emt 0:
00:01]} 38. Rf2 {[%emt 0:00:02]} Qg3+ {[%emt 0:00:03]} 39. Rg2 {[%emt 0:00:01]}
Qe3+ {[%emt 0:00:03]} 1/2-1/2

[Event "10th Tal Memorial 2016 - Blitz"]
[Site "Moscow"]
[Date "2016.09.25"]
[Round "3"]
[White "Giri, Anish"]
[Black "Gelfand, Boris"]
[Result "1/2-1/2"]
[ECO "B90"]
[WhiteElo "2755"]
[BlackElo "2743"]
[Annotator "ChessBase"]
[PlyCount "86"]
[EventDate "2016.??.??"]
[EventType "tourn"]
[EventCountry "RUS"]
[SourceTitle "playchess.com"]
[Source "ChessBase"]
[TimeControl "180+2"]

1. e4 {[%emt 0:00:00]} c5 {[%emt 0:00:00]} 2. Nf3 {[%emt 0:00:00]} d6 {[%emt 0:
00:00]} 3. d4 {[%emt 0:00:01]} cxd4 {[%emt 0:00:00]} 4. Nxd4 Nf6 5. Nc3 {
[%emt 0:00:03]} a6 {[%emt 0:00:02]} 6. Be3 {[%emt 0:00:02]} Ng4 {[%emt 0:00:01]
} 7. Bg5 {[%emt 0:00:00]} h6 {[%emt 0:00:01]} 8. Bh4 {[%emt 0:00:01]} g5 {
[%emt 0:00:00]} 9. Bg3 {[%emt 0:00:01]} Bg7 {[%emt 0:00:01]} 10. Qd2 {[%emt 0:
00:04]} Nc6 {[%emt 0:00:04]} 11. Nb3 {[%emt 0:00:01]} b5 {[%emt 0:00:01]} 12.
h4 {[%emt 0:00:02]} gxh4 {[%emt 0:00:04]} 13. Bxh4 {[%emt 0:00:01]} Nge5 {
[%emt 0:00:10]} 14. Nd5 {[%emt 0:00:01]} Nc4 {[%emt 0:00:11]} 15. Bxc4 {
[%emt 0:00:04]} bxc4 {[%emt 0:00:01]} 16. Nc1 {[%emt 0:00:01]} Be6 {[%emt 0:00:
21]} 17. Ne2 {[%emt 0:00:09]} Rb8 {[%emt 0:00:09]} 18. Rb1 {[%emt 0:00:06]}
Bxd5 {[%emt 0:00:17]} 19. exd5 {[%emt 0:00:02]} Ne5 {[%emt 0:00:01]} 20. Bg3 {
[%emt 0:00:37]} Qc8 {[%emt 0:00:13]} 21. Nc3 {[%emt 0:00:17]} Qf5 {[%emt 0:00:
09]} 22. Kf1 {[%emt 0:00:05]} h5 {[%emt 0:00:05]} 23. Qe2 {[%emt 0:00:02]} Kf8
{[%emt 0:00:09]} 24. b3 {[%emt 0:00:20]} Ng6 {[%emt 0:00:13]} 25. Ne4 {[%emt 0:
00:23]} Qxd5 {[%emt 0:00:17]} 26. Rd1 {[%emt 0:00:09]} Qe6 {[%emt 0:00:02]} 27.
Nxd6 {[%emt 0:00:13]} h4 {[%emt 0:00:15]} 28. Bh2 {[%emt 0:00:08]} cxb3 {
[%emt 0:00:11]} 29. axb3 {[%emt 0:00:03]} Rd8 {[%emt 0:00:07]} 30. Nf5 {
[%emt 0:00:12]} Rxd1+ {[%emt 0:00:19]} 31. Qxd1 {[%emt 0:00:01]} Qc8 {[%emt 0:
00:05]} 32. Qd3 {[%emt 0:00:28]} Bf6 {[%emt 0:00:11]} 33. Bg1 e6 {[%emt 0:00:
13]} 34. Nd6 {[%emt 0:00:13]} Qc6 {[%emt 0:00:01]} 35. Ne4 {[%emt 0:00:03]} Be7
{[%emt 0:00:03]} 36. f3 {[%emt 0:00:01]} Rh5 {[%emt 0:00:02]} 37. Be3 {[%emt 0:
00:05]} Rd5 {[%emt 0:00:01]} 38. Qe2 {[%emt 0:00:01]} Re5 {[%emt 0:00:06]} 39.
Bd4 {[%emt 0:00:08]} Rd5 {[%emt 0:00:01]} 40. Be3 {[%emt 0:00:02]} Re5 {
[%emt 0:00:01]} 41. Bd4 {[%emt 0:00:01]} Rd5 {[%emt 0:00:01]} 42. Be3 {[%emt 0:
00:01]} Re5 {[%emt 0:00:01]} 43. Bd4 {[%emt 0:00:01]} Rd5 {[%emt 0:00:01]}
1/2-1/2

[Event "10th Tal Memorial 2016 - Blitz"]
[Site "Moscow"]
[Date "2016.09.25"]
[Round "3"]
[White "Mamedyarov, Shakhriyar"]
[Black "Nepomniachtchi, Ian"]
[Result "1-0"]
[ECO "D90"]
[WhiteElo "2761"]
[BlackElo "2740"]
[Annotator "ChessBase"]
[PlyCount "61"]
[EventDate "2016.??.??"]
[EventType "tourn"]
[EventCountry "RUS"]
[SourceTitle "playchess.com"]
[Source "ChessBase"]
[TimeControl "180+2"]

1. d4 {[%emt 0:00:00]} Nf6 {[%emt 0:00:00]} 2. c4 {[%emt 0:00:00]} g6 {[%emt 0:
00:00]} 3. Nc3 {[%emt 0:00:00]} d5 {[%emt 0:00:00]} 4. Nf3 {[%emt 0:00:01]} Bg7
{[%emt 0:00:01]} 5. cxd5 Nxd5 {[%emt 0:00:01]} 6. Bg5 {[%emt 0:00:02]} c5 {
[%emt 0:00:03]} 7. Rc1 {[%emt 0:00:07]} Nc6 {[%emt 0:00:06]} 8. Nxd5 {[%emt 0:
00:02]} Qxd5 {[%emt 0:00:01]} 9. Rxc5 {[%emt 0:00:01]} Qxa2 {[%emt 0:00:01]}
10. e3 {[%emt 0:00:01]} Qxb2 {[%emt 0:00:06]} 11. Bc4 {[%emt 0:00:02]} Qb4+ {
[%emt 0:00:04]} 12. Nd2 {[%emt 0:00:03]} O-O {[%emt 0:00:13]} 13. O-O {[%emt 0:
00:02]} Bf5 {[%emt 0:00:41]} 14. Rb5 {[%emt 0:00:50]} Qd6 {[%emt 0:00:01]} 15.
Rxb7 {[%emt 0:00:04]} Rab8 {[%emt 0:00:09]} 16. Rxb8 {[%emt 0:00:06]} Rxb8 {
[%emt 0:00:02]} 17. Qa4 {[%emt 0:00:02]} a5 {[%emt 0:00:23]} 18. h3 {[%emt 0:
00:04]} Rb2 {[%emt 0:00:21]} 19. Nb3 {[%emt 0:00:20]} h6 {[%emt 0:00:41]} 20.
Bh4 {[%emt 0:00:15]} Bc2 {[%emt 0:00:01]} 21. Rc1 {[%emt 0:00:07]} e6 {[%emt 0:
00:13]} 22. Bg3 {[%emt 0:00:13]} Qb4 {[%emt 0:00:16]} 23. Qxc6 {[%emt 0:00:07]}
Bxb3 {[%emt 0:00:01]} 24. Bxb3 {[%emt 0:00:31]} Rxb3 {[%emt 0:00:01]} 25. Qe8+
{[%emt 0:00:01]} Qf8 {[%emt 0:00:17]} 26. Qd7 {[%emt 0:00:01]} Qb4 {[%emt 0:00:
06]} 27. Rc8+ {[%emt 0:00:01]} Bf8 {[%emt 0:00:02]} 28. Bd6 {[%emt 0:00:08]}
Qe1+ {[%emt 0:00:01]} 29. Kh2 {[%emt 0:00:01]} Qxf2 {[%emt 0:00:01]} 30. Rxf8+
Kg7 31. Be5+ {[%emt 0:00:06]} 1-0